bitfinex/quotes_SOLUSD_20260224
["timestamp","ask_amount","ask_price","bid_price","bid_amount"]
[1771912545790,0.47639192,76.769,76.751,13.0291462]
[1771912546189,0.47639192,76.769,76.742,32.57639082]
[1771912546575,0.47639192,76.769,76.743,0.49478027]
[1771912548792,0.47639192,76.769,76.745,0.48619834]
[1771912552394,0.47929572,76.783,76.751,0.48619834]
[1771912552774,0.47929572,76.782,76.751,0.48619834]
[1771912553487,5.22381421,76.78,76.752,13.02897644]
[1771912553694,0.47929572,76.779,76.753,0.48619834]
[1771912555598,0.47929572,76.779,76.755,0.48619834]
[1771912555798,0.47929572,76.778,76.755,0.48619834]
[1771912556596,0.47929572,76.777,76.755,0.48619834]
[1771912556902,0.47929572,76.769,76.745,13.51624869]
[1771912557199,0.47929572,76.769,76.746,0.48619834]
[1771912558498,0.47929572,76.768,76.746,0.48619834]
[1771912559000,0.47929572,76.768,76.748,0.48619834]
[1771912559606,0.47929572,76.768,76.72,5.42381421]
[1771912559607,0.47929572,76.759,76.72,0.2]
[1771912559904,0.47929572,76.739,76.72,0.68619834]
[1771912560294,0.47929572,76.739,76.721,0.48619834]
[1771912560493,0.47929572,76.739,76.722,0.48619834]
[1771912561182,0.47929572,76.739,76.72,0.2]
[1771912561603,0.47929572,76.729,76.703,0.48619834]
[1771912563085,0.47929572,76.729,76.705,0.48619834]
[1771912564092,13.03302386,76.729,76.705,0.48619834]
[1771912564294,0.47929572,76.728,76.705,0.48619834]
[1771912564608,5.22381421,76.73,76.705,0.48619834]
[1771912564785,5.70310993,76.73,76.705,0.48619834]
[1771912564986,0.47929572,76.729,76.705,0.48619834]
[1771912566493,0.47929572,76.729,76.707,0.48619834]
[1771912568514,0.47929572,76.719,76.7,0.2]
[1771912571204,0.47929572,76.719,76.701,0.48619834]
[1771912571392,0.47929572,76.717,76.7,0.2]
[1771912572210,2e-08,76.71,76.7,0.2]
[1771912573796,5.22381421,76.72,76.7,0.2]
[1771912574101,0.2919159,76.719,76.7,0.2]
[1771912576211,0.2919159,76.717,76.7,0.2]
[1771912577211,0.0919159,76.709,76.69,0.1080841]
[1771912577409,5.22381421,76.7,76.68,0.2]
[1771912578814,5.22381421,76.7,76.68,0.7]
[1771912579111,5.22381421,76.7,76.68,0.2]
[1771912579316,5.22381421,76.7,76.681,0.5]
[1771912579499,65.16785647,76.725,76.681,0.5]
[1771912579500,5.22381421,76.71,76.682,0.5]
[1771912580104,5.22381421,76.7,76.682,0.5]
[1771912580601,5.22381421,76.71,76.682,0.5]
[1771912581800,5.22381421,76.71,76.684,0.5]
[1771912582718,5.22381421,76.7,76.684,0.5]
[1771912583217,13.03627996,76.709,76.684,0.5]
[1771912585919,5.22381421,76.71,76.686,0.5]
[1771912586724,13.03497046,76.717,76.688,0.5]
[1771912586930,5.22381421,76.73,76.691,0.5]
[1771912587440,5.22381421,76.72,76.691,0.5]
[1771912587912,0.14216157,76.735,76.691,0.5]
[1771912587913,5.22381421,76.71,76.691,0.5]
[1771912588929,5.22381421,76.71,76.693,0.5]
[1771912589429,13.03509268,76.716,76.693,0.5]
[1771912590915,13.03458074,76.719,76.693,0.5]
[1771912593431,5.22381421,76.71,76.693,0.5]
[1771912596042,18.26002355,76.71,76.688,0.5]
[1771912597431,3.69383402,76.734,76.688,0.5]
[1771912597636,5.22381421,76.72,76.688,0.5]
[1771912599642,5.22381421,76.72,76.69,0.5]
[1771912601539,5.22381421,76.72,76.692,0.5]
[1771912602525,32.57880813,76.737,76.692,0.5]
[1771912602526,13.0331719,76.728,76.692,0.5]
[1771912603740,13.0331719,76.728,76.694,0.5]
[1771912609130,5.22381421,76.72,76.696,0.5]
[1771912611248,5.23051622,76.72,76.698,0.5]
[1771912612531,5.23051622,76.72,76.685,0.5]
[1771912613334,3.69383402,76.742,76.691,0.5]
[1771912613540,5.23051622,76.73,76.691,0.5]
[1771912616654,13.03288196,76.729,76.693,0.5]
[1771912616855,6.81294224,76.753,76.693,0.5]
[1771912617043,5.23051622,76.73,76.693,0.5]
[1771912620058,5.23051622,76.73,76.695,0.5]
[1771912621958,5.23051622,76.72,76.695,0.5]
[1771912622156,5.23051622,76.72,76.697,0.5]
[1771912622357,13.03338792,76.727,76.697,0.5]
[1771912623662,13.03338792,76.727,76.699,0.5]
[1771912624659,5.23051622,76.72,76.699,0.5]
[1771912625642,5.23051622,76.73,76.701,0.5]
[1771912626358,5.23051622,76.72,76.701,0.5]
[1771912626560,5.23051622,76.73,76.701,0.5]
[1771912629646,13.03139084,76.738,76.703,0.5]
[1771912630469,103.9,76.779,76.711,0.5]
[1771912630642,103.9,76.779,76.721,0.5]
[1771912630843,6.81149226,76.763,76.721,0.5]
[1771912631067,6.81149226,76.763,76.72,5.23051622]
[1771912631068,18.2564378,76.77,76.74,5.23051622]
[1771912631249,18.2564378,76.77,76.741,0.5]
[1771912631446,5.23051622,76.78,76.741,0.5]
[1771912631669,13.02439469,76.779,76.743,0.5]
[1771912632072,5.23051622,76.77,76.743,0.5]
[1771912632458,5.23051622,76.75,76.735,0.5]
[1771912633457,5.23051622,76.76,76.735,0.5]
[1771912633953,5.23051622,76.76,76.695,3.69383402]
[1771912633954,5.23051622,76.76,76.737,0.5]
[1771912634153,13.02626094,76.768,76.737,0.5]
[1771912635649,5.23051622,76.76,76.739,0.5]
[1771912635849,5.23051622,76.77,76.739,0.5]
[1771912636763,5.23051622,76.76,76.739,0.5]
[1771912639668,5.23051622,76.76,76.741,0.5]
[1771912643074,13.02778827,76.759,76.741,0.5]
[1771912651674,13.02657908,76.767,76.741,0.5]
[1771912652077,5.23051622,76.76,76.742,13.0306742]
[1771912652385,5.23051622,76.76,76.743,0.5]
[1771912653376,5.23051622,76.77,76.743,0.5]
[1771912654363,45.58003854,76.788,76.745,0.5]
[1771912654575,5.23051622,76.78,76.751,0.5]
[1771912654774,5.23051622,76.77,76.751,0.5]
[1771912659963,5.23051622,76.76,76.734,0.5]
[1771912662068,5.23051622,76.75,76.734,0.5]
[1771912664877,13.02906465,76.752,76.734,0.5]
[1771912665078,5.23051622,76.75,76.734,0.5]
[1771912667292,13.02906465,76.752,76.734,0.5]
[1771912669790,13.02778827,76.759,76.734,0.5]
[1771912670096,5.23051622,76.75,76.727,0.5]
[1771912670492,5.23051622,76.74,76.721,0.5]
[1771912672980,5.23051622,76.74,76.723,0.5]
[1771912673385,5.22772908,76.74,76.723,0.5]
[1771912673811,13.02963371,76.749,76.725,0.5]
[1771912674303,5.22772908,76.75,76.737,0.5]
[1771912674492,13.02626094,76.768,76.737,0.5]
[1771912674803,5.22772908,76.76,76.737,0.5]
[1771912675685,5.22772908,76.76,76.739,0.5]
[1771912679936,49.5581957,76.788,76.74,13.03101381]
[1771912680108,5.22772908,76.77,76.741,0.5]
[1771912680408,0.28432314,76.779,76.741,0.5]
[1771912680908,5.22772908,76.77,76.741,0.5]
[1771912682201,5.22772908,76.76,76.741,0.5]
[1771912682410,0.49622363,76.759,76.736,13.03157828]
[1771912684401,0.49622363,76.759,76.737,0.48816145]
[1771912687705,0.49622363,76.759,76.738,13.03135343]
[1771912688005,0.49622363,76.759,76.739,0.48816145]
[1771912689910,0.49622363,76.759,76.723,32.58458525]
[1771912689911,13.02731811,76.762,76.741,0.48816145]
[1771912690811,0.49622363,76.765,76.741,0.48816145]
[1771912691113,5.22772908,76.76,76.741,0.48816145]
[1771912692116,0.49622363,76.759,76.741,0.48816145]
[1771912696407,0.49622363,76.749,76.727,0.48816145]
[1771912697195,13.52418162,76.758,76.727,0.48816145]
[1771912697912,0.49622363,76.757,76.727,0.48816145]
[1771912698411,5.22772908,76.75,76.727,13.52128083]
[1771912698609,5.22772908,76.75,76.728,0.45433476]
[1771912699799,5.69053924,76.75,76.728,0.45433476]
[1771912703018,5.69053924,76.75,76.729,13.03288196]
[1771912703215,5.69053924,76.75,76.73,0.47352361]
[1771912704415,5.22772908,76.75,76.73,0.47352361]
[1771912706195,5.71513929,76.75,76.73,0.47352361]
[1771912706399,0.48741021,76.749,76.73,0.47352361]
[1771912707504,0.48741021,76.739,76.711,0.47352361]
[1771912707914,5.22772908,76.73,76.711,0.47352361]
[1771912708508,5.22772908,76.73,76.712,0.47352361]
[1771912708908,0.48741021,76.734,76.712,0.47352361]
[1771912711323,0.48741021,76.749,76.714,0.47352361]
[1771912714029,5.22772908,76.74,76.716,0.47352361]
[1771912715130,0.48741021,76.739,76.716,0.47352361]
[1771912716835,0.48741021,76.739,76.717,13.03492055]
[1771912717022,0.48741021,76.739,76.718,0.47352361]
[1771912717537,0.48741021,76.743,76.718,0.47352361]
[1771912718034,5.22772908,76.74,76.718,0.47352361]
[1771912718533,5.71513929,76.74,76.718,0.47352361]
[1771912718836,0.48741021,76.744,76.72,0.47352361]
[1771912719035,0.48741021,76.742,76.72,0.47352361]
[1771912719729,13.03034557,76.744,76.72,0.47352361]
[1771912720223,13.51706072,76.749,76.72,0.47352361]
[1771912720426,0.48741021,76.748,76.72,0.47352361]
[1771912721030,0.48741021,76.746,76.72,0.47352361]
[1771912721336,5.71513929,76.74,76.72,0.47352361]
[1771912721517,0.48741021,76.746,76.722,0.47352361]
[1771912723139,0.48741021,76.746,76.724,0.47352361]
[1771912723818,13.03016483,76.745,76.724,0.47352361]
[1771912724834,13.51757504,76.745,76.724,0.47352361]
[1771912725841,0.48741021,76.744,76.724,0.47352361]
[1771912728024,0.48741021,76.744,76.725,0.47522027]
[1771912730241,0.48741021,76.744,76.727,0.47522027]
[1771912733243,0.48741021,76.744,76.728,13.03305181]
[1771912733432,0.48741021,76.744,76.728,13.50827208]
[1771912735835,0.46401978,76.753,76.729,0.47522027]
[1771912736134,0.46401978,76.749,76.729,0.47522027]
[1771912736831,0.46401978,76.739,76.718,0.47522027]
[1771912738030,0.46401978,76.739,76.72,0.47522027]
[1771912743136,0.46401978,76.739,76.721,13.50946122]
[1771912743334,0.46401978,76.739,76.722,0.47522027]
[1771912743530,13.03048364,76.744,76.722,0.47522027]
[1771912743926,13.49450342,76.744,76.722,0.47522027]
[1771912744127,0.46401978,76.743,76.722,0.47522027]
[1771912748948,0.46401978,76.748,76.724,0.47522027]
[1771912752557,0.46401978,76.75,76.726,0.47522027]
[1771912752743,0.46401978,76.756,76.731,0.47522027]
[1771912757761,13.0284672,76.755,76.731,0.47522027]
[1771912757967,0.46401978,76.754,76.731,0.47522027]
[1771912758868,0.46401978,76.754,76.733,0.48882512]
[1771912762765,0.46490897,76.752,76.733,0.48882512]
[1771912763066,0.46490897,76.756,76.734,13.03203273]
[1771912763456,0.46490897,76.756,76.735,0.49340988]
[1771912764966,13.0284672,76.755,76.735,0.49340988]
[1771912765967,0.46490897,76.755,76.735,0.49340988]
[1771912769553,0.46490897,76.753,76.735,0.49340988]
[1771912780168,0.46490897,76.752,76.735,0.49340988]
[1771912788575,0.46490897,76.752,76.736,13.03169307]
[1771912788753,0.46211776,76.756,76.737,0.45591548]
[1771912789262,0.46211776,76.754,76.737,0.45591548]
[1771912794769,0.46211776,76.758,76.737,0.45591548]
[1771912798791,13.02812772,76.757,76.737,0.45591548]
[1771912798989,0.46211776,76.756,76.737,0.45591548]
[1771912799385,0.46211776,76.749,76.721,13.03424095]
[1771912800984,0.46211776,76.749,76.696,3.69383402]
[1771912801180,0.46211776,76.749,76.71,5.22618375]
[1771912801397,0.46211776,76.749,76.721,0.45591548]
[1771912801975,0.46211776,76.739,76.711,0.45591548]
[1771912802782,13.02965549,76.748,76.721,0.45591548]
[1771912802983,0.46211776,76.758,76.731,0.45591548]
[1771912803189,0.46211776,76.756,76.733,0.45591548]
[1771912803390,5.68830151,76.75,76.733,0.45591548]
[1771912803591,0.46211776,76.753,76.733,0.45591548]
[1771912805503,0.46211776,76.758,76.735,0.45591548]
[1771912807909,0.46211776,76.758,76.737,0.45591548]
[1771912808405,13.02802533,76.758,76.737,0.45591548]
[1771912808604,0.46211776,76.757,76.737,0.45591548]
[1771912809102,0.46211776,76.749,76.729,0.45591548]
[1771912809307,0.46211776,76.749,76.724,0.45591548]
[1771912809700,0.46211776,76.739,76.724,0.45591548]
[1771912810295,0.46211776,76.749,76.725,0.45591548]
[1771912811506,0.46211776,76.749,76.721,0.45591548]
[1771912811707,0.46211776,76.739,76.721,0.45591548]
[1771912812622,5.22618375,76.73,76.7,0.45591548]
[1771912812786,0.46211776,76.709,76.68,0.2]
[1771912812985,0.46211776,76.689,76.671,0.45591548]
[1771912813203,0.46211776,76.679,76.659,0.45591548]
[1771912813380,5.22618375,76.7,76.671,0.45591548]
[1771912813585,5.22618375,76.71,76.672,0.45591548]
[1771912814085,5.22618375,76.7,76.672,0.45591548]
[1771912814282,0.28432314,76.716,76.672,0.45591548]
[1771912814486,5.22618375,76.7,76.672,0.45591548]
[1771912815199,5.22618375,76.71,76.674,0.45591548]
[1771912815389,0.46211776,76.709,76.674,0.45591548]
[1771912817991,5.22618375,76.7,76.674,0.45591548]
[1771912818196,5.22618375,76.7,76.676,0.48207633]
[1771912818609,0.49251609,76.699,76.676,0.48207633]
[1771912820305,0.49251609,76.699,76.677,13.04172046]
[1771912820510,0.49251609,76.704,76.678,0.48207633]
[1771912821595,13.0354105,76.715,76.681,0.48207633]
[1771912822520,13.0354105,76.715,76.682,13.04087008]
[1771912822706,13.0354105,76.715,76.683,0.48207633]
[1771912824216,0.47416511,76.714,76.683,0.48207633]
[1771912825513,0.47416511,76.709,76.685,0.47355533]
[1771912828123,0.47416511,76.709,76.687,0.47355533]
[1771912829522,0.47416511,76.709,76.688,13.03984978]
[1771912829725,13.03560022,76.713,76.689,0.47355533]
[1771912829726,0.47416511,76.712,76.689,0.47355533]
[1771912831303,0.47416511,76.709,76.689,0.47355533]
[1771912832405,0.47416511,76.713,76.689,0.47355533]
[1771912832616,0.47416511,76.734,76.701,0.47355533]
[1771912832928,0.47416511,76.732,76.701,0.47355533]
[1771912833227,5.36086188,76.776,76.69,45.63828399]
[1771912833228,0.47416511,76.759,76.721,0.47355533]
[1771912833809,0.47416511,76.758,76.731,0.47355533]
[1771912835036,0.47416511,76.756,76.731,0.47355533]
[1771912835237,0.47416511,76.756,76.72,5.22618375]
[1771912835433,0.47416511,76.756,76.721,13.03424095]
[1771912836117,0.47416511,76.756,76.72,5.22618375]
[1771912837125,0.47416511,76.754,76.721,13.03424095]
[1771912837430,0.47416511,76.754,76.722,0.47355533]
[1771912837619,0.47416511,76.739,76.711,0.47355533]
[1771912837819,0.47416511,76.739,76.712,0.47355533]
[1771912841222,0.47416511,76.737,76.706,0.47355533]
[1771912842538,0.47416511,76.735,76.706,0.47355533]
[1771912843817,0.47416511,76.735,76.711,0.47355533]
[1771912844627,0.47416511,76.735,76.68,5.22618375]
[1771912844628,13.03095776,76.741,76.72,5.22618375]
[1771912844939,13.03095776,76.741,76.721,0.47355533]
[1771912845112,5.22618375,76.74,76.711,0.47355533]
[1771912846638,0.47416511,76.737,76.711,0.47355533]
[1771912847536,0.47416511,76.737,76.712,0.47355533]
[1771912848336,13.03135343,76.738,76.712,0.47355533]
[1771912850635,13.50034731,76.738,76.712,0.47355533]
[1771912850844,0.46899388,76.737,76.712,0.47355533]
[1771912854033,0.46899388,76.735,76.712,0.47355533]
[1771912856618,13.03203273,76.734,76.712,0.47355533]
[1771912856825,0.46899388,76.733,76.705,0.4627536]
[1771912858544,0.46899388,76.729,76.707,0.4627536]
[1771912860326,0.46899388,76.729,76.709,0.4627536]
[1771912860727,13.03218011,76.734,76.709,0.4627536]
[1771912861441,5.2283268,76.74,76.709,0.4627536]
[1771912861635,0.46899388,76.753,76.721,0.4627536]
[1771912861843,0.46899388,76.749,76.721,0.4627536]
[1771912862437,65.13800706,76.761,76.684,52.16175911]
[1771912862438,0.28432314,76.763,76.731,0.4627536]
[1771912862642,13.02644042,76.767,76.741,0.4627536]
[1771912863732,0.46899388,76.771,76.741,0.4627536]
[1771912863935,13.02502931,76.776,76.751,0.4627536]
[1771912864441,0.46899388,76.775,76.751,0.4627536]
[1771912864656,0.46899388,76.759,76.731,0.4627536]
[1771912864826,0.46899388,76.759,76.726,0.4627536]
[1771912865640,0.46899388,76.759,76.731,0.4627536]
[1771912866642,0.46899388,76.757,76.731,0.4627536]
[1771912869749,13.49729134,76.756,76.731,0.4627536]
[1771912870247,13.49668731,76.76,76.731,0.4627536]
[1771912870451,0.46899388,76.759,76.733,0.4627536]
[1771912871929,0.46899388,76.757,76.733,0.4627536]
[1771912874151,0.46899388,76.755,76.73,5.2283268]
[1771912874343,0.46899388,76.739,76.711,0.4627536]
[1771912878656,0.47404855,76.737,76.711,0.4627536]
[1771912880561,13.03135343,76.738,76.711,0.4627536]
[1771912880744,0.47404855,76.742,76.713,0.48277204]
[1771912881147,0.47404855,76.739,76.713,0.48277204]
[1771912881647,13.03012125,76.746,76.721,0.48277204]
[1771912881952,13.50345638,76.75,76.721,0.48277204]
[1771912882143,0.47404855,76.749,76.721,0.48277204]
[1771912882761,0.28432314,76.753,76.731,0.49469086]
[1771912883153,0.28432314,76.755,76.731,0.49469086]
[1771912883864,0.28432314,76.754,76.731,0.49469086]
[1771912884570,0.28432314,76.753,76.731,0.49469086]
[1771912885071,13.02786077,76.759,76.741,0.49469086]
[1771912886564,0.46044624,76.761,76.741,0.49469086]
[1771912888446,0.46044624,76.766,76.741,0.49469086]
[1771912889672,0.46044624,76.766,76.742,0.49469086]
[1771912890048,0.46044624,76.766,76.743,13.03050441]
[1771912890257,0.46044624,76.766,76.744,0.49469086]
[1771912891566,13.02677001,76.765,76.744,0.49469086]
[1771912891949,0.46044624,76.764,76.744,0.49469086]
[1771912892765,0.46044624,76.759,76.73,5.2283268]
[1771912892973,0.46044624,76.759,76.73,13.03261703]
[1771912893872,0.46044624,76.749,76.72,5.2283268]
[1771912894060,0.46044624,76.743,76.71,5.2283268]
[1771912894266,0.46044624,76.743,76.71,18.26437672]
[1771912894775,0.46044624,76.743,76.711,0.49469086]
[1771912896559,0.46044624,76.741,76.713,0.49469086]
[1771912897873,13.0306742,76.742,76.699,32.59454197]
[1771912897874,0.46044624,76.739,76.704,13.03700742]
[1771912898169,0.46044624,76.729,76.704,13.03700742]
[1771912900052,0.46044624,76.729,76.706,13.53148068]
[1771912900573,0.46044624,76.719,76.691,0.49469086]
[1771912901158,0.46044624,76.719,76.69,13.03950971]
[1771912904493,13.03475064,76.718,76.686,13.04015083]
[1771912904661,0.46044624,76.709,76.682,0.49469086]
[1771912906975,0.46044624,76.709,76.683,13.04070002]
[1771912907158,0.46044624,76.709,76.684,0.49469086]
[1771912909585,0.46044624,76.709,76.685,13.04035991]
[1771912909786,0.46044624,76.709,76.685,13.50330247]
[1771912910856,0.46044624,76.709,76.685,13.04035991]
[1771912911181,0.46044624,76.709,76.686,0.46294256]
[1771912911582,0.48915279,76.707,76.681,0.46294256]
[1771912911792,0.48915279,76.707,76.679,13.04128866]
[1771912912086,0.48915279,76.689,76.67,0.2]
[1771912913467,0.48915279,76.679,76.65,0.2]
[1771912913669,0.48915279,76.668,76.65,0.2]
[1771912914459,13.04296843,76.67,76.64,0.2]
[1771912914460,0.28432314,76.653,76.64,0.2]
[1771912914661,45.65024637,76.67,76.64,0.2]
[1771912914662,0.48915279,76.657,76.64,0.2]
[1771912915892,0.48915279,76.656,76.64,0.2]
[1771912916684,0.28432314,76.649,76.63,1e-08]
[1771912916868,0.48915279,76.639,76.608,0.46294256]
[1771912917068,0.48915279,76.629,76.601,0.46294256]
[1771912917692,5.23887915,76.65,76.612,0.46294256]
[1771912917900,18.28528583,76.65,76.621,0.46294256]
[1771912919690,0.48915279,76.649,76.621,0.46294256]
[1771912920187,0.48915279,76.655,76.623,0.46294256]
[1771912920371,52.14512766,76.709,76.631,0.46294256]
[1771912920372,0.48915279,76.662,76.631,0.46294256]
[1771912920571,0.48915279,76.669,76.631,0.46294256]
[1771912920988,0.48915279,76.668,76.631,0.46294256]
[1771912922489,13.04066359,76.684,76.651,0.46294256]
[1771912922784,0.14216157,76.683,76.651,0.46294256]
[1771912922990,0.63131436,76.683,76.651,0.46294256]
[1771912923189,0.48915279,76.682,76.651,0.46294256]
[1771912923387,5.23887915,76.69,76.651,0.46294256]
[1771912923589,0.48915279,76.695,76.632,110.9197202]
[1771912923590,0.48915279,76.695,76.661,0.46294256]
[1771912923784,52.11972361,76.747,76.64,5.23887915]
[1771912923785,0.48915279,76.669,76.64,0.46294256]
[1771912923988,0.48915279,76.659,76.633,0.46294256]
[1771912924375,0.23808616,76.64,76.633,0.46294256]
[1771912924575,0.48915279,76.659,76.634,13.04903828]
[1771912924775,0.48915279,76.659,76.635,0.46294256]
[1771912925596,0.48915279,76.659,76.636,13.04869773]
[1771912927175,0.48915279,76.659,76.635,0.46294256]
[1771912927493,0.48915279,76.649,76.621,0.46294256]
[1771912927693,0.48915279,76.649,76.624,13.51354636]
[1771912927881,0.48915279,76.649,76.625,0.46294256]
[1771912929399,0.48915279,76.648,76.62,0.46294256]
[1771912929991,0.48915279,76.639,76.611,0.46294256]
[1771912930499,0.48915279,76.629,76.61,0.2]
[1771912930695,0.48915279,76.619,76.6,0.2]
[1771912931183,0.48915279,76.617,76.6,0.2]
[1771912931799,5.24033518,76.61,76.6,0.2]
[1771912932597,13.54125678,76.616,76.6,0.2]
[1771912932800,0.48915279,76.615,76.6,0.2]
[1771912932997,5.24033518,76.61,76.6,0.2]
[1771912933198,0.48915279,76.609,76.59,0.2]
[1771912933702,45.68236398,76.616,76.58,0.2]
[1771912933703,0.48915279,76.599,76.58,0.2]
[1771912934084,45.68236398,76.616,76.563,0.46294256]
[1771912934085,0.48915279,76.589,76.563,0.46294256]
[1771912934404,0.48915279,76.596,76.565,0.46294256]
[1771912934701,13.05568248,76.595,76.565,0.46294256]
[1771912935084,5.24033518,76.59,76.565,0.46294256]
[1771912935290,11.71526608,76.59,76.565,0.46294256]
[1771912935497,11.71526608,76.58,76.565,0.46294256]
[1771912935698,0.48915279,76.579,76.553,0.46294256]
[1771912935909,11.71526608,76.58,76.553,0.46294256]
[1771912936087,0.48915279,76.585,76.553,0.46294256]
[1771912936884,0.48915279,76.588,76.555,0.46294256]
[1771912937086,0.48915279,76.596,76.561,0.46294256]
[1771912937286,12.20441887,76.61,76.571,0.46294256]
[1771912937578,0.48915279,76.609,76.571,0.46294256]
[1771912939196,0.4784253,76.599,76.567,0.49196794]
[1771912939505,0.4784253,76.595,76.567,0.49196794]
[1771912941106,13.05585293,76.594,76.568,0.49196794]
[1771912941407,13.05585293,76.594,76.557,0.49196794]
[1771912941408,11.71526608,76.58,76.557,0.49196794]
[1771912941614,11.71526608,76.58,76.558,0.49196794]
[1771912941805,0.4784253,76.584,76.558,0.49196794]
[1771912942899,0.47211079,76.579,76.557,13.06216283]
[1771912943095,0.47211079,76.579,76.557,13.53170942]
[1771912943298,0.47211079,76.579,76.558,0.46954659]
[1771912944104,0.47211079,76.577,76.552,0.46954659]
[1771912944706,0.47211079,76.588,76.552,0.46954659]
[1771912945099,0.47211079,76.587,76.552,0.46954659]
[1771912946018,0.47211079,76.585,76.554,0.46954659]
[1771912949914,0.47211079,76.585,76.556,0.46954659]
[1771912950166,0.47211079,76.569,76.554,0.2]
[1771912950304,0.47211079,76.569,76.544,0.46954659]
[1771912950626,0.47211079,76.575,76.545,0.46954659]
[1771912950796,11.71526608,76.58,76.544,13.06438127]
[1771912950797,0.47211079,76.579,76.564,0.2]
[1771912950996,0.47211079,76.579,76.551,0.46954659]
[1771912951497,0.47211079,76.569,76.54,0.2]
[1771912951693,0.47211079,76.559,76.54,0.2]
[1771912952003,0.47211079,76.557,76.54,0.2]
[1771912952197,0.47211079,76.549,76.532,0.46954659]
[1771912952402,0.47211079,76.549,76.53,0.2]
[1771912952812,0.47211079,76.549,76.531,13.06660046]
[1771912953119,0.47211079,76.549,76.532,0.46954659]
[1771912953307,0.47211079,76.549,76.53,0.66954659]
[1771912954310,0.47211079,76.555,76.532,0.46954659]
[1771912955622,11.71526608,76.56,76.532,0.46954659]
[1771912955925,0.47211079,76.565,76.534,0.46954659]
[1771912956122,0.47211079,76.565,76.541,0.46954659]
[1771912956724,0.2,76.549,76.541,0.46954659]
[1771912956924,0.47211079,76.565,76.534,0.46954659]
[1771912957522,0.47211079,76.565,76.535,0.46954659]
[1771912957721,0.47211079,76.588,76.541,0.46954659]
[1771912957902,0.47211079,76.598,76.561,0.46954659]
[1771912958104,0.28432314,76.594,76.561,0.46954659]
[1771912958309,0.75643393,76.593,76.561,0.46954659]
[1771912958522,0.47211079,76.592,76.561,0.26954659]
[1771912959138,0.47211079,76.599,76.57,5.25161854]
[1771912959433,52.18315771,76.654,76.57,5.25161854]
[1771912959434,0.47211079,76.608,76.57,5.25161854]
[1771912959633,0.47211079,76.599,76.56,5.25161854]
[1771912959811,0.47211079,76.606,76.57,5.25161854]
[1771912960002,18.30480151,76.61,76.58,5.25161854]
[1771912960325,0.47211079,76.619,76.59,5.25161854]
[1771912960529,0.47211079,76.619,76.591,0.46954659]
[1771912961934,0.47211079,76.619,76.593,0.46954659]
[1771912962314,0.47211079,76.617,76.593,0.46954659]
[1771912963837,0.47211079,76.625,76.601,0.46954659]
[1771912964625,0.47211079,76.623,76.601,0.66954659]
[1771912965330,0.47211079,76.623,76.611,0.2]
[1771912965517,0.47211079,76.623,76.601,0.2]
[1771912966329,0.47211079,76.619,76.601,0.2]
[1771912966526,0.47211079,76.619,76.591,0.2]
[1771912966724,0.47211079,76.619,76.592,13.05619385]
[1771912967942,0.47211079,76.617,76.592,13.05619385]
[1771912968342,0.47211079,76.617,76.591,0.2]
[1771912968551,0.47211079,76.617,76.592,0.49904882]
[1771912969851,13.05115764,76.622,76.601,0.49904882]
[1771912970014,0.48596776,76.623,76.601,0.49904882]
[1771912970220,13.53696727,76.623,76.601,0.49904882]
[1771912970628,0.48596776,76.622,76.593,0.49904882]
[1771912970826,0.48596776,76.622,76.591,0.2]
[1771912970827,0.48596776,76.619,76.591,0.2]
[1771912971029,0.48596776,76.609,76.591,0.2]
[1771912972116,0.48596776,76.608,76.591,0.2]
[1771912972526,11.70576247,76.6,76.568,0.49904882]
[1771912972846,0.48596776,76.608,76.571,0.49904882]
[1771912973142,0.48596776,76.612,76.591,0.49904882]
[1771912973445,0.48596776,76.612,76.581,0.49904882]
[1771912973643,0.48596776,76.609,76.574,0.49904882]
[1771912974647,0.48596776,76.607,76.575,0.49904882]
[1771912976623,0.2,76.599,76.577,0.49904882]
[1771912976818,0.68596776,76.599,76.577,0.49904882]
[1771912977459,0.2,76.589,76.577,0.49904882]
[1771912978334,0.2,76.579,76.577,0.49904882]
[1771912978637,0.2,76.579,76.571,0.49904882]
[1771912978824,0.2,76.579,76.572,0.49904882]
[1771912979026,0.2,76.589,76.572,0.49904882]
[1771912981052,0.2,76.599,76.574,0.49904882]
[1771912981858,26.0193181,76.866,76.582,0.33642677]
[1771912981859,0.48596776,76.611,76.582,0.33642677]
[1771912982227,0.48596776,76.609,76.582,0.33642677]
[1771912983147,0.48596776,76.607,76.582,0.33642677]
[1771912984231,0.48596776,76.607,76.582,0.53642677]
[1771912984430,0.48596776,76.607,76.583,13.05772821]
[1771912984651,0.48596776,76.607,76.582,0.2]
[1771912985025,0.48596776,76.607,76.592,0.2]
[1771912985232,0.48596776,76.605,76.582,0.2]